Workbook

Sheet Policy
J1: @ 14.50% | P1: Email - 29/07/2015 | R1: Wts 29/07/2015
B2: =B40 -> 15 | I2: 877 | J2: =ROUND(I2*101.901%,0) -> 894 | L2: 2015-07-01 | N2: =B2 -> 15 | P2: sms 29/06/2015 | W2: 14210042140100000006 | X2: m | Z2: SMS - 23/6/13 | AA2: 14210034142500008513 | AB2: 14210042140100001328 | AL2: =Z2 -> SMS - 23/6/13 | AM2: 2015-16 | AN2: =A2&$AP$4&$AQ$4&E2&$AR$3&$AR$4&J2&$AL$4&TEXT(AL2,"dd-mm-yyyy")&$AS$4 -> ---Reminder New India Policy of Renewal -----Premium Approx Rs . --894 Pay Before SMS - 23/6/13 Cheque - THE NEW INDIA ASSURANCE CO LTD
A3: Name | C3: =AN3 -> 0 | D3: =GetConcat(A3) -> Name Motor Policy No -- 111 Rs. 11450 Due Date - 04/05/2016 Details - Vehicle DOC - 01/01/2009 Sum Insured - 17000 | E3: Motor | F3: =Z3 -> 2016-05-04 | G3: =CHAR(10) ->  | H3: ' ------ | I3: =AE3 -> 11450 | J3: Renewal | K3: Renewal | O3: 2009-01-01 | R3: Vehicle | T3: 17000 | U3: 10000 | V3: 15 | W3: =ROUND((U3*V3)%,0) -> 1500 | Y3: 2015-05-05 | Z3: =Y3+365 -> 2016-05-04 | AA3: 111 | AB3: =LEN(AA3) -> 3 | AC3: =U3 -> 10000 | AD3: =ROUNDUP(AC3*0.145,0) -> 1450 | AE3: =AC3+AD3 -> 11450 | AF3: =ROUNDUP(AC3*0.145,0)+AC3 -> 11450 | AR3: Renewal --
A4: Name | B4: FILE NO. | C4: Mobile Updated | D4: Entry Module | E4: Type | F4: Due Date - | G4: Area | H4: Reference | I4: =AE4 -> Rs. | J4: Amount | K4: Done | L4: Busines Month | M4: New / Ren Business | N4: Branch | O4: DOC - | P4: SMS SEND | Q4: Confirmation | R4: Details - | S4: Person | T4: Sum Insured - | U4: Premium | V4: Rate | W4: Net | X4: Bill | Y4: Period From | Z4: Period To | AA4: Policy No -- | AB4: =LEN(AA4) -> 14 | AC4: Premium | AD4: Ser. Tax | AE4: Rs. | AF4: Charges Paid | AG4: Edort. No. | AH4: Reason For Eod. | AI4: Nomination | AJ4: Raw | AK4: Calender entry | AL4: Pay Before | AM4: Financial Year | AN4: Renewal Entry | AO4: ---Pay 10 days Before -- | AP4: --- | AQ4: Reminder New India Policy of | AR4: ---Premium Approx Rs . -- | AS4: Cheque - THE NEW INDIA ASSURANCE CO LTD | AT4: Final Last Date
A5: Vaishali Mahendra | D5: =GetConcat(A5) -> Vaishali Mahendra Motor Policy No -- 14230031150100004634 Rs. 946 Due Date - 31/12/2016 Details - MH- 01-AQ-3954 -- Honda Activa --- Year 2009 DOC - 01/01/2009 Sum Insured - 17000 | E5: Motor | F5: =Z5 -> 2016-12-31 | G5: Wadala | H5: Direct 4 | I5: =AE5 -> 946 | L5: 2015-12-01 | O5: 2009-01-01 | R5: MH- 01-AQ-3954 -- Honda Activa --- Year 2009 | S5: 1 | T5: 17000 | U5: 826 | V5: 10 | W5: 17 | Y5: 2016-01-01 | Z5: =Y5+365 -> 2016-12-31 | AA5: 14230031150100004634 | AB5: =LEN(AA5) -> 20 | AC5: =U5 -> 826 | AD5: =ROUNDUP(AC5*0.145,0) -> 120 | AE5: =AC5+AD5 -> 946 | AM5: 2015-16 | AN5: =A5&$AP$4&$AQ$4&E5&$AR$3&$AR$4&J5&$AL$4&TEXT(AL5,"dd-mm-yyyy")&$AS$4 -> Vaishali Mahendra ---Reminder New India Policy of Motor Renewal -----Premium Approx Rs . -- Pay Before 00-01-1900 Cheque - THE NEW INDIA ASSURANCE CO LTD
A6: Manish Chheda 5 | D6: Manish Chheda 5 Mediclaim 2007 Policy No -- 14230031150100004635 Rs. 6870 Due Date - 15/12/2015 Details - Manish M/32 - SI 5 Lacs DOC - 24/10/2010 Sum Insured - 500000 | E6: Mediclaim 2007 | F6: 2015-12-15 | G6: Dadar | H6: Direct 2 | I6: 6870 | L6: 2016-01-01 | O6: 2010-10-24 | R6: Manish M/32 - SI 5 Lacs | S6: 1 | T6: 500000 | U6: 6000 | V6: 15 | W6: =ROUND((U6*V6)%,0) -> 900 | Y6: 2014-12-15 | Z6: 2015-12-15 | AA6: 14230031150100004635 | AB6: 20 | AC6: 6000 | AD6: 870 | AE6: 6870 | AM6: 2015-16 | AN6: =A6&$AP$4&$AQ$4&E6&$AR$3&$AR$4&J6&$AL$4&TEXT(AL6,"dd-mm-yyyy")&$AS$4 -> Manish Chheda 5---Reminder New India Policy of Mediclaim 2007 Renewal -----Premium Approx Rs . -- Pay Before 00-01-1900 Cheque - THE NEW INDIA ASSURANCE CO LTD
A7: Bhart chheda | D7: Bhart chheda Mediclaim Policy No -- 14230031150100004 Rs. 7443 Due Date - 15/12/2015 Details - Manish M/32 - SI 5 Lacs DOC - 24/10/2010 Sum Insured - 500000 | E7: Mediclaim | F7: 2015-12-15 | G7: Area B | H7: Direct | I7: 7443 | L7: 2016-01-01 | O7: 2010-10-24 | R7: Manish M/32 - SI 5 Lacs | S7: 1 | T7: 500000 | U7: 6500 | V7: 15 | W7: 975 | Y7: 2015-02-15 | Z7: 2016-02-15 | AA7: 14230031150100004 | AB7: 17 | AC7: 6500 | AD7: 943 | AE7: 7443
A8: Ramesh Gala | D8: Ramesh Gala Mediclaim Policy No -- 173 Rs. 1718 Due Date - 01/03/2016 Details - Manish M/32 - SI 10 Lacs DOC - 24/10/2011 Sum Insured - 500000 | E8: Mediclaim | F8: 2016-03-01 | G8: Dadar | H8: Vibha 2 | I8: 1718 | L8: 2016-01-01 | O8: 2011-10-24 | R8: Manish M/32 - SI 10 Lacs | S8: 1 | T8: 500000 | U8: 1500 | V8: 15 | W8: 225 | Y8: 2015-01-23 | Z8: 2016-01-23 | AA8: 173 | AB8: 3 | AC8: 1500 | AD8: 218 | AE8: 1718
A9: Shah Vaibhav 123 | D9: Shah Vaibhav 123 Mediclaim 123 Policy No -- 145 Rs. 4351 Due Date - 02/04/2016 Details - Good 5 Lacs DOC - 24/10/2015 Sum Insured - 500000 | E9: Mediclaim 123 | F9: 2016-04-02 | G9: Area | H9: Vibha 2 | I9: 4351 | L9: 2016-01-01 | O9: 2015-10-24 | R9: Good 5 Lacs | S9: 1 | T9: 500000 | U9: 3800 | V9: 15 | W9: 570 | Y9: 2015-03-16 | Z9: 2016-03-15 | AA9: 145 | AB9: 3 | AC9: 3800 | AD9: 551 | AE9: 4351
A10: Vibha MedicAL 123 | D10: Vibha MedicAL 123 Shop Policy No -- 145 Rs. 4351 Due Date - 15/03/2016 Details - Good 5 Lacs DOC - 24/10/2015 Sum Insured - 500000 | E10: Shop | F10: 2016-03-15 | G10: Area | H10: Vibha 2 | I10: 4351 | L10: 2016-01-01 | O10: 2015-10-24 | R10: Good 5 Lacs | S10: 1 | T10: 500000 | U10: 3800 | V10: 15 | W10: 570 | Y10: 2015-03-16 | Z10: =Y10+365 -> 2016-03-15 | AA10: 145 | AB10: 3 | AC10: 3800 | AD10: 551 | AE10: 4351
A11: Shah Vaibhav | D11: =GetConcat(A11) -> Shah Vaibhav Shop Policy No -- 145 Rs. 4351 Due Date - 01/03/2016 Details - Good 5 Lacs DOC - 24/10/2015 Sum Insured - 500000 | E11: Shop | F11: 2016-03-01 | G11: Area | H11: Vibha 2 | I11: =AE11 -> 4351 | L11: 2016-01-01 | O11: 2015-10-24 | R11: Good 5 Lacs | S11: 1 | T11: 500000 | U11: 3800 | V11: 15 | W11: 570 | Y11: 2015-03-16 | Z11: =Y11+365 -> 2016-03-15 | AA11: 145 | AB11: 3 | AC11: =U11 -> 3800 | AD11: 551 | AE11: =AC11+AD11 -> 4351
A12: Pankaj K. Gala | D12: Pankaj K. Gala Mediclaim Policy No -- Rs. 14045 Due Date - 01/03/2016 Details - Pankaj -800 + B150 DOC - 21/03/2005 Sum Insured - 1600000 | E12: Mediclaim | F12: 2016-03-01 | G12: Matunga | H12: Gala | I12: 14045 | K12: Yes | L12: 2015-03-01 | O12: 2005-03-21 | R12: Pankaj -800 + B150 | S12: 2 | T12: 1600000 | U12: 12500 | V12: 15 | W12: 1875 | Y12: 2015-03-21 | Z12: =Y12+364 -> 2016-03-19 | AB12: 0 | AC12: 12500 | AD12: =ROUNDUP(AC12*0.1236,0) -> 1545 | AE12: 14045 | AM12: 2014-15
A13: Jenis P. Gala 123 | D13: Jenis P. Gala 123 Mediclaim 2007 Policy No -- 1223 Rs. 20731 Due Date - 19/03/2016 Details - Jenis -800+ 100 +Jay - 800+ 150 DOC - 21/03/2005 Sum Insured - 800000 | E13: Mediclaim 2007 | F13: =Z13 -> 2016-03-19 | G13: Matunga | H13: Gala | I13: 20731 | K13: Yes | L13: 2015-03-01 | O13: 2005-03-21 | R13: Jenis -800+ 100 +Jay - 800+ 150 | S13: 1 | T13: 800000 | U13: 18450 | V13: 15 | W13: 2768 | Y13: 2015-03-21 | Z13: 2016-03-19 | AA13: 1223 | AB13: 4 | AC13: 18450 | AD13: 2281 | AE13: 20731 | AM13: 2014-15
A14: Jenis P. Gala 123 | D14: =GetConcat(A14) -> Jenis P. Gala 123 Mediclaim Policy No -- Rs. 20731 Due Date - 19/03/2016 Details - Jenis -800+ 100 +Jay - 800+ 150 DOC - 21/03/2005 Sum Insured - 800000 | E14: Mediclaim | F14: =Z14 -> 2016-03-19 | G14: Matunga | H14: Gala | I14: 20731 | K14: Yes | L14: 2015-03-01 | O14: 2005-03-21 | R14: Jenis -800+ 100 +Jay - 800+ 150 | S14: 1 | T14: 800000 | U14: 18450 | V14: 15 | W14: 2768 | Y14: 2015-03-21 | Z14: 2016-03-19 | AB14: 0 | AC14: =U14 -> 18450 | AD14: =ROUNDUP(AC14*0.1236,0) -> 2281 | AE14: =AC14+AD14 -> 20731 | AM14: 2014-15
A15: Ramesh Chheda 11 | D15: =GetConcat(A15) -> Ramesh Chheda 11 Mediclaim 2008 Policy No -- Rs. 20731 Due Date - 19/03/2016 Details - Jenis -800+ 100 +Jay - 800+ 150 DOC - 21/03/2005 Sum Insured - 800000 | E15: Mediclaim 2008 | F15: =Z15 -> 2016-03-19 | G15: Matunga | H15: Gala | I15: 20731 | K15: Yes | L15: 2015-03-01 | O15: 2005-03-21 | R15: Jenis -800+ 100 +Jay - 800+ 150 | S15: 1 | T15: 800000 | U15: 18450 | V15: 15 | W15: =ROUND((U15*V15)%,0) -> 2768 | Y15: 2015-03-21 | Z15: 2016-03-19 | AB15: =LEN(AA15) -> 0 | AC15: =U15 -> 18450 | AD15: =ROUNDUP(AC15*0.1236,0) -> 2281 | AE15: =AC15+AD15 -> 20731 | AM15: 2014-15
A16: Ramesh Chheda 11 | D16: =GetConcat(A16) -> Ramesh Chheda 11 Mediclaim 2008 Policy No -- Rs. 20731 Due Date - 19/03/2016 Details - Jenis -800+ 100 +Jay - 800+ 150 DOC - 21/03/2005 Sum Insured - 800000 | E16: Mediclaim 2008 | F16: =Z16 -> 2016-03-19 | G16: Matunga | H16: Gala | I16: 20731 | K16: Yes | L16: 2015-03-01 | O16: 2005-03-21 | R16: Jenis -800+ 100 +Jay - 800+ 150 | S16: 1 | T16: 800000 | U16: 18450 | V16: 15 | W16: =ROUND((U16*V16)%,0) -> 2768 | Y16: 2015-03-21 | Z16: 2016-03-19 | AB16: =LEN(AA16) -> 0 | AC16: =U16 -> 18450 | AD16: =ROUNDUP(AC16*0.1236,0) -> 2281 | AE16: =AC16+AD16 -> 20731 | AM16: 2014-15
A17: Jenis P. Gala 112 | D17: Jenis P. Gala 112 Mediclaim Policy No -- 1223 Rs. 20731 Due Date - 19/03/2016 Details - Jenis -800+ 100 +Jay - 800+ 150 DOC - 21/03/2005 Sum Insured - 800000 | E17: Mediclaim | F17: 2016-03-19 | G17: Matunga | H17: Gala | I17: 20731 | K17: Yes | L17: 2015-03-01 | O17: 2005-03-21 | R17: Jenis -800+ 100 +Jay - 800+ 150 | S17: 1 | T17: 800000 | U17: 18450 | V17: 15 | W17: 2768 | Y17: 2015-03-21 | Z17: 2016-03-19 | AA17: 1223 | AB17: 4 | AC17: 18450 | AD17: 2281 | AE17: 20731 | AM17: 2014-15
A18: Jenis P. Gala 112 | D18: Jenis P. Gala 112 Mediclaim 2007 Policy No -- Rs. 20731 Due Date - 19/03/2016 Details - Jenis -800+ 100 +Jay - 800+ 150 DOC - 21/03/2005 Sum Insured - 800000 | E18: Mediclaim 2007 | F18: 2016-03-19 | G18: Matunga | H18: Gala | I18: 20731 | K18: Yes | L18: 2015-03-01 | O18: 2005-03-21 | R18: Jenis -800+ 100 +Jay - 800+ 150 | S18: 1 | T18: 800000 | U18: 18450 | V18: 15 | W18: 2768 | Y18: 2015-03-21 | Z18: 2016-03-19 | AB18: 0 | AC18: 18450 | AD18: 2281 | AE18: 20731 | AM18: 2014-15
A19: Ramesh Chheda 11 | D19: Ramesh Chheda 11 Mediclaim 2008 Policy No -- Rs. 20731 Due Date - 19/03/2016 Details - Jenis -800+ 100 +Jay - 800+ 150 DOC - 21/03/2005 Sum Insured - 800000 | E19: Mediclaim 2008 | F19: 2016-03-19 | G19: Matunga | H19: Gala | I19: 20731 | K19: Yes | L19: 2015-03-01 | O19: 2005-03-21 | R19: Jenis -800+ 100 +Jay - 800+ 150 | S19: 1 | T19: 800000 | U19: 18450 | V19: 15 | W19: 2768 | Y19: 2015-03-21 | Z19: 2016-03-19 | AB19: 0 | AC19: 18450 | AD19: 2281 | AE19: 20731 | AM19: 2014-15
C25: =OFFSET($D$1,16,0) -> Jenis P. Gala 112 Mediclaim Policy No -- 1223 Rs. 20731 Due Date - 19/03/2016 Details - Jenis -800+ 100 +Jay - 800+ 150 DOC - 21/03/2005 Sum Insured - 800000
B40: =SUBTOTAL(3,H5:H38) -> 15 | E40: =SUBTOTAL(3,E5:E37) -> 15 | I40: =SUBTOTAL(9,I5:I37) -> 189192 | T40: =SUBTOTAL(9,#REF!) ->  | U40: =SUBTOTAL(9,#REF!) ->  | W40: =SUBTOTAL(9,#REF!) ->  | AC40: =SUBTOTAL(9,#REF!) ->  | AD40: =SUBTOTAL(9,#REF!) ->  | AE40: =SUBTOTAL(9,#REF!) -> 
AL46: Haresh P. Maru
AL47: Reminder of Your Accident Policy / Mediclaim
AL48: Cheque - The New India Assurance Co Ltd. | AQ48: Cheque - The New India Assurance Co Ltd.
AL49: Approx Premium will be Rs. | AM49: 1100/-/- [ Do not write in Cheque ] | AQ49: Please check last year policy
AL50: Accident Policy Rs. | AM50: 738/- [ Do not write in Cheque ] | AQ50: any correction or change then let me know
AL51: confirm & Pay Before | AM51: 2015-07-15
AC52: =#REF!/AC50*100 -> 
W70: Shreya Securites -- Due date is 15/12/2013
W72: Send last year copy with mark any correction and addition
W74: With Blank Cheque -- in favour of " THE NEW INDIA ASSURANCE CO LTD "
W76: Send the confirmation of mail .
JE150: 1

Sheet Sheet1
C7: Respected All
C9: Last time some brothers have help to make this file perfect | H9: It has some still issue . I think there is some correction required
H10: in the formulla
C11: I want some clarification / suggestion on this file
C15: I have approx more than 1000 entries to do in this file
B16: 1] | C16: when I start inserting lines & copy paste data from other files
C17: then it does not work properly
C19: What is the logic of this
B21: 2] | C21: when I make the entry in this file & some other files open at the same time
C22: then all the formula
C26: Then all the details pertaining -- respectively
C27: change in D 15
C29: at present it not change for D 15
B31: 3] | C31: I have to refesh my cell entry then It show change
C33: I want that if I make any changes in any raw
C34: then last updated raw details
C35: then it should automatically updates all
C36: details of that raw
C37: & show it on Cell D15
C40: Thanks in advance
